Cogmind - Beta 16 @@@ ROGUE MODE // 2026.01.25 @ 20:04:49 Player: Bt-7274 Result: Destroyed by Y-45 Defender with Beam Rifle Performance ------------- Evolutions (2) 1000 Regions Visited (3) 600 Robots Destroyed (35) 175 Value Destroyed (850) 850 Prototype IDs (7) 140 Alien Tech Used (0) 0 Bonus (0) 0 TOTAL SCORE: 2765 Bonus ------- None Cogmind --------- Core Integrity 0/550 Matter 290/300 Energy 94/100 System Corruption 0% Temperature Cool (9) Movement Core (50) Location -8/Materials Parts ------- > --- POWER (1) -------- (None) > --- PROPULSION (2) --- (None) > --- UTILITY (5) ------ Machine Analyzer Visual Processing Unit Propulsion Shielding > --- WEAPON (3) ------- (None) > --- INVENTORY (5) ---- Ion Engine Heat Sink Shock Absorption System Proton Missile Launcher Improved Datajack Peak State ------------ > --- POWER ------------ Light Nuclear Core > --- PROPULSION ------- Light Treads Light Treads > --- UTILITY ---------- Large Storage Unit Machine Analyzer Visual Processing Unit Improved Terrain Scanner Seismic Detector > --- WEAPON ----------- Particle Gun Assault Rifle Assault Cannon > --- INVENTORY -------- Ion Engine Compact Wheel Heat Sink Targeting Computer ECM Suite Propulsion Shielding Reflective Plating Shock Absorption System Improved Shield Generator Small Laser Light Assault Rifle Proton Missile Launcher Proton Missile Launcher Improved Datajack Hammer [Rating: 24] Favorites ----------- Power Light Nuclear Core Engine Ion Engine Power Core Light Nuclear Core Propulsion Light Treads Treads Light Treads Wheel Compact Wheel Utility Large Storage Unit Device Seismic Detector Storage Large Storage Unit Processor Machine Analyzer Protection Propulsion Shielding Weapon Assault Rifle Energy Gun Particle Gun Ballistic Gun Assault Rifle Ballistic Cannon Assault Cannon Launcher Proton Missile Launcher Impact Weapon Hammer Build | -11 -10 -10 -8 ------- Run | Yrd Mat Sub Mat Slots Evolved 4 | . . . 4 Power . | . . . . Propulsion . | . . . . Utility 3 | . . . 3 Weapon 1 | . . . 1 Parts Attached 21 | 7 4 . 10 Power 4 | 1 1 . 2 Engine 1 | 1 . . . Core 3 | . 1 . 2 Reactor . | . . . . Propulsion 3 | 2 . . 1 Treads 2 | 2 . . . Leg . | . . . . Wheel 1 | . . . 1 Hover . | . . . . Flight . | . . . . Utility 7 | 2 1 . 4 Device 2 | 1 . . 1 Storage 2 | 1 1 . . Processor 2 | . . . 2 Hackware . | . . . . Protection 1 | . . . 1 Artifact . | . . . . Weapon 7 | 2 2 . 3 Energy Gun 1 | . . . 1 Energy Cannon . | . . . . Ballistic Gun 3 | 2 1 . . Ballistic Cannon 1 | . . . 1 Launcher 1 | . . . 1 Special Weapon . | . . . . Impact Weapon 1 | . 1 . . Slashing Weapon . | . . . . Piercing Weapon . | . . . . Special Melee Weapon . | . . . . Unidentified Prototypes . | . . . . Parts Lost 13 | . . . 13 Power 3 | . . . 3 Propulsion 3 | . . . 3 Utility 2 | . . . 2 Weapon 5 | . . . 5 Highest Loss Streak 8 | . . . 8 To Critical Strikes . | . . . . Average Backups 10 | 2 8 13 13 Power 1 | . 1 2 1 Propulsion 1 | 1 2 2 1 Utility 4 | . 2 6 6 Weapon 2 | . 2 3 4 Tool/Special . | . . . . Unused Backups 12 | . . . 12 Power 1 | . . . 1 Propulsion 1 | . . . 1 Utility 7 | . . . 7 Weapon 2 | . . . 2 Tool/Special 1 | . . . 1 Average Slot Usage (%) 96 | . 100 100 85 Engine 3 | . 5 . . Core 8 | . 8 14 8 Treads 23 | . 28 28 13 Device 14 | . 14 14 15 Storage 12 | . 14 14 9 Processor 4 | . . . 15 Ballistic Gun 22 | . 26 28 11 Ballistic Cannon 1 | . . . 6 Impact Weapon 1 | . 1 . . Peak Build Rating 24 | 7 10 10 24 Average Rating 11 | 4 8 10 19 On Entrance 6 | . 7 10 10 Avg Prop Armor Cover (%) . | . . . . Naked Turns . | . . . . Heaviest Build 37 | 14 30 30 37 Greatest Support 40 | 40 40 40 40 Greatest Overweight (x) 6 | . . . 6 Average Overweight (x) . | . . . . Largest Inventory Capacity 15 | 8 15 15 15 Average Capacity 14 | 7 14 15 14 Most Carried 15 | 5 13 14 15 Average Carried 10 | 2 8 13 13 Final Capacity 15 | 8 15 15 5 Final Carried 14 | 5 13 14 5 Class Distribution -------------------- 76% | Mutant 13% | Scavenger-Skirmisher 7% | Scavenger-Mutant Dominant Class ---------------- Mutant | -10/Materials Mutant | -10/Subcaves Scavenger-Skirmisher | -8/Materials Resources | -11 -10 -10 -8 ----------- Run | Yrd Mat Sub Mat Matter Collected 966 | 137 448 42 339 Remotely . | . . . . Salvage Created 1137 | 17 437 95 588 Parts 72 | 4 31 4 33 Haulers Intercepted 3 | . 1 . 2 Recyclers Shooed . | . . . . Parts Field Recycled . | . . . . Retrieved Matter . | . . . . Parts Self-Destructed 4 | . . 4 . Prevented . | . . . . Parts Restored . | . . . . Kills | -11 -10 -10 -8 ------- Run | Yrd Mat Sub Mat Combat Hostiles Destroyed 18 | . 8 2 8 Guns 16 | . 8 2 6 Cannons 1 | . . . 1 AOE 1 | . . . 1 Classes Destroyed 9 | 1 5 . 3 Worker 4 | . . . 4 Builder 1 | . . . 1 Tunneler 2 | 1 1 . . Hauler 3 | . 1 . 2 Recycler 1 | . . . 1 Operator 2 | . 1 . 1 Watcher 4 | . 3 . 1 Swarmer 3 | . 3 . . Grunt 15 | . 5 2 8 Best Kill Streak 7 | 1 3 2 7 Combat Bots Only 3 | . 3 2 2 Max Kills in Single Turn 4 | 1 2 1 4 Gunslinging 1 | . 1 . . Exploded 1 | . . . 1 Melee . | . . . . Uniques/NPCs Destroyed . | . . . . Combat | -11 -10 -10 -8 -------- Run | Yrd Mat Sub Mat Hostile Shots Fired 182 | . 36 10 136 Missed 52 | . 7 2 43 Hits 130 | . 29 8 93 Projectile 130 | . 29 8 93 Critical Strikes 4 | . . . 4 Damage Taken 1878 | . 314 102 1462 Core 650 | . 61 36 553 Absorbed by Shields . | . . . . Core Remaining (%) 80 | 100 . 61 . Volleys Fired 100 | 1 52 7 40 Largest 3 | 2 2 2 3 Hottest 122 | 40 40 40 122 Shots Fired 210 | 2 104 14 90 Gun 178 | 2 104 14 58 Cannon 29 | . . . 29 Launcher 3 | . . . 3 Special . | . . . . Kinetic 194 | 2 104 14 74 Thermal 13 | . . . 13 Explosive . | . . . . Electromagnetic 3 | . . . 3 Robot Hit Streak 11 | 2 11 5 9 Robot Miss Streak 3 | . 3 1 3 Penetration Max . | . . . . Secondary Targets 2 | . 2 . . Max Gunslinging Chain 1 | . 1 . . Shots Hit Robots 134 | 2 66 10 56 Core Hits 59 | 1 23 5 30 Critical Kills 1 | . . . 1 Critical Parts Destroyed . | . . . . Critical Strikes 1 | . . . 1 Destroy 1 | . . . 1 Melee Attacks 7 | . 6 . 1 Impact 7 | . 6 . 1 Slashing . | . . . . Piercing . | . . . . Sneak Attacks 2 | . 2 . . Combat Hostiles . | . . . . Follow-up Attacks . | . . . . Damage Inflicted 2427 | 16 835 126 1450 Guns 1321 | 16 753 126 426 Cannons 455 | . . . 455 Explosions 554 | . . . 554 Melee 79 | . 79 . . Ramming 18 | . 3 . 15 Kinetic 1632 | 16 753 126 737 Thermal 144 | . . . 144 Explosive 400 | . . . 400 Electromagnetic 154 | . . . 154 Impact 79 | . 79 . . Slashing . | . . . . Piercing . | . . . . Highest Corruption . | . . . . Average Corruption . | . . . . Corruption Purged . | . . . . Corruption Blocked . | . . . . Overload Shots . | . . . . Overflow Damage 111 | . 17 . 94 Projectiles . | . . . . Explosions 94 | . . . 94 Melee 17 | . 17 . . Knockbacks 7 | . . . 7 Impact . | . . . . Kinetic 7 | . . . 7 Secondary . | . . . . Self-Inflicted Damage 124 | . . . 124 Shots 2 | . . . 2 Rammed 4 | . 1 . 3 Targets Rammed 4 | . 1 . 3 Kicked . | . . . . Crushed . | . . . . Highest Temperature 301 | . 12 . 301 Average Temperature 85 | . 4 . 98 Received Heat Transfer 924 | . 129 57 738 Effects 3 | . . . 3 Interference 2 | . . . 2 Short Circuit 1 | . . . 1 Siege Activations . | . . . . Martial Activations . | . . . . Shielding Activations . | . . . . Robots Disrupted . | . . . . Combat Hostiles . | . . . . Robots Corrupted 1 | . 1 . . Combat Hostiles . | . . . . Parts Fried 1 | . 1 . . Impact Corruptions 2 | . 2 . . Robots Melted . | . . . . Combat Hostiles . | . . . . Parts Melted . | . . . . Heat Transferred 333 | . . . 333 Parts Sabotaged . | . . . . Parts Stolen . | . . . . Parts Stripped . | . . . . Power Chain Reactions . | . . . . Alert | -11 -10 -10 -8 ------- Run | Yrd Mat Sub Mat Maximum Alert Level . | . . . . Low Security (%) 100 | 100 100 . 100 Level 1 . | . . . . Level 2 . | . . . . Level 3 . | . . . . Level 4 . | . . . . Level 5 . | . . . . High Security . | . . . . Max Security . | . . . . Peak Influence 95 | 5 83 . 95 Initial . | . . . . Average 17 | . 18 . 18 Influence Increases 714 | 5 308 50 351 Destroy 0b10 Robot/C 360 | . 160 40 160 Destroy 0b10 Robot/NC 85 | 5 30 . 50 Destroy Leader 74 | . 48 10 16 Successful Hack 8 | . 8 . . Disable Machine 60 | . 15 . 45 Destroy Structure 22 | . 2 . 20 Lose Combat Pursuer 105 | . 45 . 60 Influence Decreases 647 | 5 305 53 284 Entered New Map 3 | . . 3 . Time Decay 529 | 5 305 50 169 Lost Part 115 | . . . 115 Squads Dispatched 4 | . 2 . 2 Investigation 1 | . 1 . . Extermination . | . . . . Reinforcement 3 | . 1 . 2 Assault . | . . . . Garrison . | . . . . Intercept . | . . . . Searches Triggered . | . . . . Construction Impeded 1 | . . . 1 Haulers Reinforced . | . . . . Active Scanning Responses . | . . . . Cargo Convoy Interrupts . | . . . . Stealth | -11 -10 -10 -8 --------- Run | Yrd Mat Sub Mat Distress Signals 2 | . 1 . 1 Communications Jammed . | . . . . Distress Signals . | . . . . Times Spotted 51 | . 23 2 26 Peak Tracking Total 8 | . 4 2 8 Tactical Retreats 4 | . 2 . 2 Traps | -11 -10 -10 -8 ------- Run | Yrd Mat Sub Mat Traps Triggered 1 | . 1 . . Indirectly . | . . . . Trap Hack Attempts . | . . . . Triggered . | . . . . Disarmed . | . . . . Reprogrammed . | . . . . Reused . | . . . . Traps Extracted . | . . . . Installed . | . . . . Triggered . | . . . . Machines | -11 -10 -10 -8 ---------- Run | Yrd Mat Sub Mat Machines Disabled 4 | . 1 . 3 Max in Single Turn 2 | . 1 . 2 Garrison Access 1 | . . . 1 Machines Repaired . | . . . . Machines Dismantled . | . . . . Machines Sabotaged . | . . . . Overloaded Fab Kills . | . . . . Hacking | -11 -10 -10 -8 --------- Run | Yrd Mat Sub Mat Machines Accessed 7 | . 4 . 3 Terminals 6 | . 4 . 2 Fabricators . | . . . . Repair Stations . | . . . . Recycling Units . | . . . . Scanalyzers . | . . . . Garrison Access 1 | . . . 1 Total Hacks 17 | . 11 . 6 Successful 8 | . 6 . 2 Failed 9 | . 5 . 4 Catastrophic . | . . . . Database Lockouts . | . . . . Manual 7 | . 5 . 2 Terminals 16 | . 11 . 5 Fabricators . | . . . . Repair Stations . | . . . . Recycling Units . | . . . . Scanalyzers . | . . . . Garrison Access 1 | . . . 1 Terminal Hacks 7 | . 6 . 1 Prototype ID Bank 4 | . 3 . 1 Repair Station Index 1 | . 1 . . Locate Traps 1 | . 1 . . Registered Components 1 | . 1 . . Fabricator Hacks . | . . . . Repair Station Hacks . | . . . . Recycling Unit Hacks . | . . . . Scanalyzer . | . . . . Garrison Access Hacks 1 | . . . 1 Seal Access 1 | . . . 1 Unauthorized Hacks . | . . . . Terminals . | . . . . Fabricators . | . . . . Repair Stations . | . . . . Recycling Units . | . . . . Scanalyzers . | . . . . Garrison Access . | . . . . Data Cores Recovered . | . . . . Used . | . . . . Hacking Detections 6 | . 4 . 2 Full Trace Events . | . . . . Feedback Events . | . . . . Feedback Blocked . | . . . . Robot Schematics Acquired . | . . . . Robots Built . | . . . . Authchips . | . . . . Time . | . . . . Total Robot Build Rating . | . . . . Part Schematics Acquired . | . . . . Parts Built . | . . . . Authchips . | . . . . Time . | . . . . Total Part Build Rating . | . . . . Part Studies Acquired . | . . . . Parts Repaired . | . . . . Time . | . . . . Parts Recycled . | . . . . Recycled Matter . | . . . . Retrieved Matter . | . . . . Retrieved Components . | . . . . Parts Scanalyzed . | . . . . Part Schematics Acquired . | . . . . Parts Damaged . | . . . . Bothacking | -11 -10 -10 -8 ------------ Run | Yrd Mat Sub Mat Used RIF Installer . | . . . . Robots Hacked . | . . . . Non-combat . | . . . . Combat . | . . . . Robot Hacks Applied . | . . . . Relay Couplers Released . | . . . . Fabnet Peak Effective % . | . . . . Robots Rewired . | . . . . Allies Hacked . | . . . . Hacks Repelled . | . . . . Allies | -11 -10 -10 -8 -------- Run | Yrd Mat Sub Mat Total Allies . | . . . . Largest Group . | . . . . Highest-Rated Group . | . . . . Highest-Rated Ally . | . . . . Total Orders . | . . . . Ally Attacks . | . . . . Total Damage . | . . . . Kills . | . . . . Allies Corrupted . | . . . . Allies Melted . | . . . . Intel | -11 -10 -10 -8 ------- Run | Yrd Mat Sub Mat Active Infowar (turns) 2342 | 14 1420 263 645 Optics 565 | . . . 565 Terrain 512 | . . . 512 Seismic 2272 | 14 1420 263 575 Machine Analysis 492 | . . . 492 Robot Analysis Total . | . . . . Derelict Logs Recovered . | . . . . Drone Launches . | . . . . Drone Recoveries . | . . . . Exploration | -11 -10 -10 -8 ------------- Run | Yrd Mat Sub Mat Turns Passed 2422 | 94 1420 263 645 Spaces Moved 1239 | 50 732 151 306 Core 4 | 3 . . 1 Treads 1134 | 47 732 151 204 Legs . | . . . . Wheels 101 | . . . 101 Hover . | . . . . Flight . | . . . . Fastest Speed 50 | 50 160 160 115 Average Speed 156 | 153 160 160 145 Slowest Speed 350 | 160 160 160 350 Overloaded Moves . | . . . . Propulsion Burnouts . | . . . . Robots Hopped . | . . . . Potential Cave-ins . | . . . . Cave-ins Triggered . | . . . . Exploration Rate (%) 32 | 5 76 10 38 Regions Visited 3 Branch Regions 1 Pre-discovered Areas . | . . . . Known Exits Taken . | . . . . Unknown Exits Taken 3 | 1 1 1 . Scrap Searched . | . . . . Spaces Dug 3 | . 2 . 1 Terrain Destroyed 18 | . 2 . 16 Melee 3 | . 2 . 1 Projectile 2 | . . . 2 AOE 13 | . . . 13 Terrain Rammed . | . . . . Walls Destroyed . | . . . . Machines Disabled . | . . . . Actions | -11 -10 -10 -8 --------- Run | Yrd Mat Sub Mat Total 1517 | 62 868 159 428 Wait 115 | . 66 1 48 Move 1236 | 49 731 150 306 Hop . | . . . . Pick Up 21 | 5 6 1 9 Fast Attach 9 | 7 . . 2 Attach 9 | . . . 9 Detach 1 | . . . 1 Swap 9 | . 5 . 4 Drop 6 | . 1 . 5 Fire 100 | 1 52 7 40 Melee 7 | . 6 . 1 Ram 3 | . . . 3 Kick . | . . . . Crush 1 | . 1 . . Escape Stasis . | . . . . Rewire . | . . . . Trap . | . . . . Miscellaneous . | . . . . Route ------- -11/Scrapyard -10/Materials (discovered 5 exits: [*Mat x3] / [*Min] / [*Sub]) -10/Subcaves -8/Materials (discovered 2 exits: [*Sto x2]) History --------- Turn | Location | Event 29 | -11/Scrapyard | Discovered new exit (range 15) 95 | -11/Scrapyard | Entered Materials 303 | -10/Materials | Build established: Mutant 586 | -10/Materials | Discovered new exit (range 10) 592 | -10/Materials | Discovered new exit (range 6) 800 | -10/Materials | Discovered new exit (range 10) 945 | -10/Materials | Discovered new exit (range 6) 1148 | -10/Materials | Discovered new exit (range 3) 1515 | -10/Materials | Entered Subcaves 1516 | -10/Subcaves | Approached by a straggling Scientist 1648 | -10/Subcaves | Discovered new exit (range 16) 1778 | -10/Subcaves | Entered Materials 1778 | -8/Materials | Evolved 4 slots: Utility x3, Weapon x1 2292 | -8/Materials | Lost 4 parts (1p2n1w) 2401 | -8/Materials | Discovered new exit (range 17) 2412 | -8/Materials | Core integrity fell below 50% 2419 | -8/Materials | Discovered new exit (range 14) 2420 | -8/Materials | Core integrity fell below 20% 2423 | -8/Materials | Destroyed by Y-45 Defender with Beam Rifle Last Messages --------------- 02375_ Acquired 28 matter. 02380_ Y-45 Defender misfires. 02382_ G-47 Trooper IFF system glitched. 02383_ >> Machine Analyzer network decryption results: 02383_ Terminal x1 02383_ K-01 Serf cleans the Terminal. 02392_ Lgt. Nuclear Core destroyed. 02401_ EXIT=FOUND 02404_ >> Machine Analyzer network decryption results: 02404_ Terminal x1 02405_ Proton Missile Launcher destroyed. 02417_ Com. Wheel destroyed. 02419_ S-10 Pest destroyed. 02419_ EXIT=FOUND 02420_ >> Machine Analyzer network decryption results: 02420_ Terminal x2 02422_ Dropped Lrg. Storage Unit. Map ----- +----------------------------------------------------+ | | | | | | | | | | | | | | | | | | | | | | | | | | | | | | | ?????????????????????????????????????????????????? | | ?????????????????????????????????????????????????? | | ?????????????????????????????????????????????????? | | ???????????????????????????????####??????????????? | | ?????????????????????????????? ???????????????? | | ??????????###????????#######?! """???????????????? | | ?????????# ####### #! """???????????????? | | ????????? # ?"""???????????????? | | ????????? Y < ; ????????????????????? | | ?????????????? s!! #?"?"""???????????????? | | ?????????????????????# !@/#?T?"""???????????????? | | ?????????????????????##s![##?"?"""???????????????? | | ??????????????????????#% #??????????????????????? | | ??????????????????????#* #??????????????????????? | | ??????????????????????+ #??????????????????????? | | ?????????????????""???# #??????????????????????? | | ?????????????????"T???# #??????????????????????? | | ?????????????????""???# #??????????????????????? | | ??????????????????????# #??????????????????????? | | ????????????????####### #??????????????????????? | | ????????????????# # #??????????????????????? | | ????????????????# " /ggg#?"""?"""??????????????? | | ????????????????# = T # #?"""?"""??????????????? | | ????????????????# " # +?"""?"""??????????????? | | ????????????????# ?# #??????????????????????? | | ????????????????# [ ??## ##??????????????????????? | | ????????????????# ????# #???????????????????????? | | ????????????????# """??# #???????????????????????? | | ????????????????#?"""??# ######??####????????????? | | ??????????????????"""??# #?? #????????????? | | ???????????????????????# #### #?""" #????????????? | | ???????????????????????# #??# # """ #????????????? | | ???????????????????????# #??# + """ #????????????? | | ???????????????????????# #??# # #????????????? | | ???????????????????????# #??# + #????????????? | +----------------------------------------------------+ Best States ------------- Heat Dissipation 31 Energy Generation 14 Energy Capacity 250 Matter Stores 300 Matter Capacity 300 Sight Range 18 Terrain Scan Range 16 Terrain Scan Density 10 Propulsion Shielding 33 Evasion (%) 40 Recoil Reduction 2 Item Schematics ----------------- None Robot Schematics ------------------ None Fabricated ------------ Nothing Repaired ---------- Nothing Studied --------- None Alien Tech Used ----------------- None Achievements -------------- None Challenges ------------ None Game ------ Seed HeavyThunderMapper Manual? 0 Play Time 00:20:00 Cumulative 62.7 hours Start 2026.01.25 @ 19:44:46 End 2026.01.25 @ 20:04:49 Sessions 1 Manual Loads 0 Difficulty Rogue Special Mode None Game No. 77 Rogue 77 Adventurer 0 Explorer 0 Win Type - Total 1 Types 1/0/0/0/0/0/0/0/0/0 Lore% 40 Gallery% 46 Achievement% 30 Wizard Run 0 Options --------- Layout 1 ASCII 0 Keyboard 0 Movement Numpad Keybinds 0 Fullscreen 1 Font 32/SmallcapsGlow Map View 50x35 Zoom Use 0% Tactical HUD 1 Map Filters NONE Filters NONE Steam 1 RUN: 6624abba-66ae-4c07-b25d-10dca2d32227